fUSD/lending_fUSD_20240223
["ID","MTS","AMOUNT","RATE_DAILY","PERIOD"]
[314996640,1708720248595,-1845.7,0.000382,3]
[314996641,1708720248605,-1845.7,0.000382,3]
[314996642,1708720248614,-1845.7,0.000382,3]
[314996643,1708720248623,-1845.7,0.000382,3]
[314996644,1708720248632,-1845.7,0.000382,3]
[314996645,1708720248642,-1845.7,0.000382,3]
[314996646,1708720248651,-1845.7,0.000382,3]
[314996647,1708720248661,-1845.7,0.000382,3]
[314996648,1708720248670,-1845.7,0.000382,3]
[314996649,1708720248680,-1845.7,0.000382,3]
[314996650,1708720248689,-1845.7,0.000382,3]
[314996651,1708720248699,-1845.7,0.000382,3]
[314996652,1708720248708,-1845.7,0.000382,3]
[314996653,1708720248718,-1845.7,0.000382,3]
[314996654,1708720248728,-1845.7,0.000382,3]
[314996655,1708720248738,-1845.7,0.000382,3]
[314996656,1708720248748,-1845.7,0.000382,3]
[314996657,1708720248758,-1845.7,0.000382,3]
[314996658,1708720248768,-1845.7,0.000382,3]
[314996659,1708720248778,-242.19778823,0.00038225,7]
[314996660,1708720248789,-150.0,0.00038225,7]
[314996661,1708720248799,-150.0,0.00038248,7]
[314996662,1708720248807,-242.19778823,0.00038264,7]
[314996663,1708720248817,-2007.55,0.00038264,2]
[314996664,1708720248826,-153.77814043,0.00038275,2]
[314996665,1708720248835,-150.0,0.00038277,2]
[314996666,1708720248845,-150.0,0.00038283,7]
[314996667,1708720248855,-4996.98,0.00038295,2]
[314996668,1708720248864,-242.19778823,0.00038302,7]
[314996669,1708720248873,-150.0,0.00038318,7]
[314996670,1708720248882,-150.0,0.00038323,2]
[314996671,1708720248892,-500.0,0.00038334,10]
[314996672,1708720248901,-166.99392,0.00038335,4]
[314996673,1708720248911,-242.19778823,0.00038341,7]
[314996674,1708720248920,-150.0,0.00038341,7]
[314996675,1708720248929,-222.0,0.0003835,2]
[314996676,1708720248939,-150.0,0.00038351,2]
[314996677,1708720248948,-10000.0,0.00038352,2]
[314996678,1708720248957,-153.76,0.00038356,2]
[314996679,1708720248967,-3991.82,0.00038356,15]
[314996681,1708720248976,-151.0,0.0003836,14]
[314996682,1708720248986,-151.0,0.0003836,14]
[314996683,1708720248996,-151.0,0.0003836,14]
[314996684,1708720249006,-151.0,0.0003836,14]
[314996685,1708720249015,-166.546488,0.0003836,14]
[314996686,1708720249024,-244.86194,0.0003836,14]
[314996687,1708720249033,-151.0,0.0003836,14]
[314996688,1708720249045,-242.19778823,0.0003838,7]
[314996689,1708720249055,-150.0,0.00038385,2]
[314996690,1708720249065,-150.0,0.00038388,7]
[314996691,1708720249074,-150.0,0.00038388,7]
[314996692,1708720249084,-8000.0,0.000384,2]
[314996693,1708720249094,-151.0,0.000384,14]
[314996694,1708720249103,-151.0,0.000384,14]
[314996695,1708720249113,-151.0,0.000384,14]
[314996696,1708720249123,-242.19778823,0.00038419,7]
[314996697,1708720249132,-16044.34690818,0.0003842,11]
[314996698,1708720249142,-150.0,0.00038427,2]
[314996699,1708720249151,-765.99,0.00038439,2]
[314996700,1708720249162,-242.19778823,0.00038458,7]
[314996701,1708720249173,-150.0,0.00038458,7]
[314996702,1708720249183,-150.0,0.00038458,7]
[314996703,1708720249192,-150.0,0.00038458,7]
[314996704,1708720249202,-150.0,0.00038458,7]
[314996705,1708720249213,-203.0,0.00038467,19]
[314996706,1708720249222,-1249.999999,0.0003848,28]
[314996707,1708720249232,-242.19778823,0.00038496,7]
[314996708,1708720249241,-1250.72742068,0.000385,28]
[314996709,1708720249252,-1026.3672741,0.00038504,30]
[314996710,1708720249261,-150.0,0.00038508,2]
[314996711,1708720249270,-150.0,0.00038511,2]
[314996712,1708720249280,-150.0,0.00038514,2]
[314996713,1708720249291,-150.0,0.00038514,2]
[314996714,1708720249302,-150.0,0.00038527,2]
[314996715,1708720249315,-150.0,0.00038527,7]
[314996716,1708720249324,-150.0,0.00038532,2]
[314996717,1708720249335,-300.0,0.00038532,2]
[314996718,1708720249345,-242.19778823,0.00038535,7]
[314996719,1708720249356,-150.0,0.00038554,2]
[314996720,1708720249367,-150.0,0.0003856,2]
[314996721,1708720249377,-150.0,0.00038568,2]
[314996722,1708720249387,-242.19778823,0.00038574,7]
[314996723,1708720249396,-150.0,0.00038574,7]
[314996724,1708720249405,-8601.92,0.00038576,7]
[314996725,1708720249414,-8601.92,0.00038576,7]
[314996726,1708720249423,-8601.92,0.00038576,7]
[314996727,1708720249432,-8601.92,0.00038576,7]
[314996728,1708720249441,-150.0,0.00038576,2]
[314996729,1708720249451,-150.0,0.0003858,7]
[314996730,1708720249461,-150.0,0.00038584,2]
[314996731,1708720249471,-150.0,0.00038588,2]
[314996732,1708720249481,-150.0,0.00038594,2]
[314996733,1708720249490,-150.0,0.00038595,2]
[314996734,1708720249499,-150.0,0.00038597,7]
[314996735,1708720249510,-150.0,0.00038598,2]
[314996736,1708720249519,-150.0,0.00038601,2]
[314996737,1708720249529,-150.0,0.00038603,2]
[314996738,1708720249539,-150.0,0.00038607,7]
[314996739,1708720249549,-150.0,0.00038609,2]
[314996740,1708720249559,-242.19778823,0.00038613,7]
[314996741,1708720249569,-150.0,0.00038613,2]
[314996742,1708720249580,-150.0,0.00038616,2]
[314996743,1708720249589,-150.0,0.00038619,2]
[314996744,1708720249599,-150.0,0.0003863,2]
[314996745,1708720249608,-150.0,0.00038632,7]
[314996746,1708720249617,-150.0,0.00038639,2]
[314996747,1708720249626,-242.19778823,0.00038652,7]
[314996748,1708720249636,-150.0,0.00038654,2]
[314996749,1708720249645,-1208.0,0.00038656,30]
[314996750,1708720249655,-150.0,0.00038656,2]
[314996751,1708720249664,-150.0,0.00038662,2]
[314996752,1708720249673,-150.0,0.00038667,7]
[314996753,1708720249682,-150.0,0.00038669,2]
[314996754,1708720249691,-150.0,0.00038672,2]
[314996755,1708720249701,-2100.0,0.0003868,5]
[314996756,1708720249710,-150.0,0.00038681,2]
[314996757,1708720249720,-242.19778823,0.0003869,7]
[314996758,1708720249729,-150.0,0.0003869,7]
[314996759,1708720249739,-300.0,0.00038691,2]
[314996760,1708720249748,-150.0,0.00038693,2]
[314996761,1708720249757,-317.88,0.000387,2]
[314996762,1708720249766,-150.0,0.00038702,2]
[314996763,1708720249775,-150.18,0.00038705,2]
[314996764,1708720249784,-1250.0,0.0003871,21]
[314996765,1708720249795,-300.0,0.00038711,2]
[314996766,1708720249804,-150.0,0.00038716,2]
[314996767,1708720249815,-800.0,0.00038728,5]
[314996768,1708720249825,-150.0,0.00038729,2]
[314996769,1708720249837,-242.19778823,0.00038729,7]
[314996770,1708720249846,-150.0,0.00038733,2]
[314996771,1708720249855,-150.0,0.00038737,7]
[314996772,1708720249865,-701.61705084,0.00038746,30]
[314996773,1708720249875,-460.53930124,0.00038746,2]
[314996774,1708720249884,-15181.71124671,0.00038748,30]
[314996775,1708720249893,-537.44924789,0.00038751,30]
[314996776,1708720249902,-150.0,0.00038752,2]
[314996777,1708720249911,-150.0,0.00038753,2]
[314996778,1708720249920,-15181.71124671,0.00038754,30]
[314996779,1708720249929,-150.0,0.00038755,2]
[314996780,1708720249938,-1483.46586773,0.00038757,30]
[314996781,1708720249947,-499.29698648,0.00038758,30]
[314996782,1708720249957,-150.0,0.00038759,2]
[314996783,1708720249968,-3407.11679206,0.00038761,30]
[314996784,1708720249977,-701.61705084,0.00038762,30]
[314996785,1708720249986,-1000.0,0.00038764,30]
[314996786,1708720249995,-155.21572,0.00038764,2]
[314996787,1708720250005,-150.0,0.00038764,2]
[314996788,1708720250014,-150.0,0.00038764,2]
[314996789,1708720250022,-6892.55022949,0.00038764,2]
[314996790,1708720250032,-150.0,0.00038764,2]
[314996791,1708720250044,-151.98417,0.00038764,2]
[314996792,1708720250054,-151.0,0.00038765,14]
[314996793,1708720250063,-151.0,0.00038765,14]
[314996794,1708720250073,-151.0,0.00038765,14]
[314996795,1708720250082,-151.0,0.00038765,14]
[314996796,1708720250092,-14764.81460762,0.00038765,30]
[314996797,1708720250103,-528.55678337,0.00038765,30]
[314996798,1708720250113,-16044.34690818,0.00038766,12]
[314996799,1708720250122,-151.0,0.00038766,14]
[314996800,1708720250131,-151.0,0.00038766,14]
[314996801,1708720250141,-151.0,0.00038766,3]
[314996802,1708720250150,-151.0,0.00038766,14]
[314996803,1708720250160,-151.0,0.00038766,14]
[314996804,1708720250170,-200.0,0.00038766,5]
[314996805,1708720250179,-800.0,0.00038766,5]
[314996806,1708720250189,-200.0,0.00038766,20]
[314996807,1708720250198,-500.0,0.00038766,20]
[314996808,1708720250208,-15181.71124671,0.00038767,30]
[314996809,1708720250217,-151.0,0.00038767,2]
[314996810,1708720250227,-151.0,0.00038767,7]
[314996811,1708720250237,-151.0,0.00038767,14]
[314996812,1708720250247,-151.0,0.00038767,14]
[314996813,1708720250257,-310.834237,0.00038767,14]
[314996814,1708720250266,-310.834237,0.00038767,14]
[314996815,1708720250276,-151.0,0.00038767,14]
[314996816,1708720250285,-151.0,0.00038767,14]
[314996817,1708720250297,-151.0,0.00038767,14]
[314996818,1708720250308,-151.0,0.00038767,14]
[314996819,1708720250318,-151.0,0.00038767,14]
[314996820,1708720250328,-151.0,0.00038767,14]
[314996821,1708720250338,-151.0,0.00038767,14]
[314996822,1708720250349,-163.24031,0.00038767,14]
[314996823,1708720250359,-163.24031,0.00038767,14]
[314996824,1708720250368,-151.0,0.00038767,14]
[314996825,1708720250378,-161.65656,0.00038767,14]
[314996826,1708720250389,-161.65656,0.00038767,14]
[314996827,1708720250399,-151.0,0.00038767,14]
[314996828,1708720250409,-180.870871,0.00038767,14]
[314996829,1708720250418,-151.0,0.00038767,14]
[314996830,1708720250428,-180.870871,0.00038767,14]
[314996831,1708720250438,-242.19778823,0.00038768,7]
[314996832,1708720250448,-4830.54448761,0.0003877,30]
[314996833,1708720250457,-4830.5444876,0.0003877,30]
[314996834,1708720250467,-528.55678337,0.00038771,30]
[314996835,1708720250477,-150.0,0.00038772,7]
[314996836,1708720250487,-213.12254516,0.00038772,30]
[314996837,1708720250497,-4830.54448761,0.00038774,30]
[314996838,1708720250507,-499.29698648,0.00038774,30]
[314996839,1708720250517,-15181.71124671,0.00038775,30]
[314996840,1708720250526,-499.29698648,0.00038777,30]
[314996841,1708720250535,-150.0,0.00038779,2]
[314996842,1708720250547,-61168.51766008,0.00038782,30]
[314996843,1708720250556,-151.0,0.00038782,14]
[314996844,1708720250565,-150.0,0.00038782,2]
[314996845,1708720250575,-3343.97962348,0.00038785,30]
[314996846,1708720250585,-150.0,0.00038785,2]
[314996847,1708720250595,-528.55678337,0.00038787,30]
[314996848,1708720250605,-150.0,0.00038787,2]
[314996849,1708720250615,-499.29698648,0.00038788,30]
[314996850,1708720250625,-3343.97962348,0.00038789,30]
[314996851,1708720250635,-151.0,0.00038789,7]
[314996852,1708720250645,-151.0,0.00038789,14]
[314996853,1708720250656,-446.483578,0.00038789,30]
[314996854,1708720250666,-86579.92804487,0.00038789,30]
[314996855,1708720250676,-86579.92804487,0.00038789,30]
[314996856,1708720250686,-294.31208596,0.0003879,30]
[314996857,1708720250696,-22340.21217792,0.0003879,30]
[314996858,1708720250707,-537.44924789,0.00038791,30]
[314996859,1708720250717,-537.44924789,0.00038792,30]
[314996860,1708720250727,-6197.64971409,0.00038792,30]
[314996861,1708720250737,-150.0,0.00038793,2]
[314996862,1708720250747,-150.0,0.00038795,2]
[314996863,1708720250757,-14764.81460762,0.00038798,30]
[314996864,1708720250767,-3407.11679206,0.00038798,30]
[314996865,1708720250777,-1730.0,0.000388,28]
[314996866,1708720250787,-152.0,0.000388,7]
[314996867,1708720250799,-4830.54448761,0.000388,30]
[314996868,1708720250809,-2127.9870332,0.00038801,30]
[314996869,1708720250818,-2127.9870332,0.00038804,30]
[314996870,1708720250829,-150.0,0.00038804,2]
[314996871,1708720250838,-800.0,0.00038804,5]
[314996872,1708720250848,-4830.54448761,0.00038807,30]
[314996873,1708720250858,-242.19778823,0.00038807,7]
[314996874,1708720250868,-150.0,0.00038807,7]
[314996875,1708720250877,-150.0,0.00038807,7]
[314996876,1708720250887,-150.0,0.00038807,7]
[314996877,1708720250897,-150.0,0.00038807,7]
[314996878,1708720250907,-3407.11679206,0.00038808,30]
[314996879,1708720250916,-22340.21217792,0.00038808,30]
[314996880,1708720250926,-150.0,0.00038809,2]
[314996881,1708720250935,-61168.51766008,0.00038812,30]
[314996882,1708720250944,-6197.64971409,0.00038814,30]
[314996883,1708720250954,-213.12254516,0.00038817,30]
[314996884,1708720250964,-1483.46586773,0.00038819,30]
[314996885,1708720250973,-150.0,0.0003882,2]
[314996886,1708720250983,-1483.46586773,0.00038821,30]
[314996887,1708720250993,-294.31208596,0.00038821,30]
[314996888,1708720251002,-22340.21217792,0.00038822,30]
[314996889,1708720251012,-22340.21217792,0.00038822,30]
[314996890,1708720251021,-4830.5444876,0.00038823,30]
[314996891,1708720251031,-294.31208596,0.00038823,30]
[314996892,1708720251042,-249.18066457,0.00038828,2]
[314996893,1708720251052,-446.483578,0.00038832,30]
[314996894,1708720251062,-4830.5444876,0.00038835,30]
[314996895,1708720251072,-528.55678337,0.00038835,30]
[314996896,1708720251081,-150.0,0.00038836,2]
[314996897,1708720251092,-3407.11679206,0.00038837,30]
[314996898,1708720251102,-2127.9870332,0.00038837,30]
[314996899,1708720251111,-61168.51766008,0.00038838,30]
[314996900,1708720251121,-150.0,0.00038839,2]
[314996901,1708720251130,-499.29698648,0.00038839,30]
[314996902,1708720251140,-294.31208596,0.0003884,30]
[314996903,1708720251149,-6197.64971409,0.00038841,30]
[314996904,1708720251159,-446.483578,0.00038842,30]
[314996905,1708720251169,-3343.97962348,0.00038842,30]
[314996906,1708720251178,-213.12254516,0.00038842,30]
[314996907,1708720251188,-800.0,0.00038842,5]
[314996908,1708720251198,-1483.46586773,0.00038842,30]
[314996909,1708720251207,-242.19778823,0.00038846,7]
[314996910,1708720251217,-2127.9870332,0.00038846,30]
[314996911,1708720251226,-86579.92804487,0.00038846,30]
[314996912,1708720251236,-6197.64971409,0.00038846,30]
[314996913,1708720251246,-86579.92804487,0.00038847,30]
[314996914,1708720251255,-4830.5444876,0.00038848,30]
[314996915,1708720251265,-86579.92804487,0.00038849,30]
[314996916,1708720251275,-8601.92,0.00038849,7]
[314996917,1708720251285,-8601.92,0.00038849,7]
[314996918,1708720251295,-701.61705084,0.0003885,30]
[314996919,1708720251308,-528.55678337,0.00038855,30]
[314996920,1708720251319,-22340.21217792,0.00038858,30]
[314996921,1708720251331,-2127.9870332,0.00038859,30]
[314996922,1708720251342,-3407.11679206,0.0003886,30]
[314996923,1708720251352,-150.0,0.00038862,2]
[314996924,1708720251362,-701.61705084,0.00038863,30]
[314996925,1708720251372,-3343.97962348,0.00038864,30]
[314996926,1708720251382,-150.0,0.00038865,2]
[314996927,1708720251395,-152.306449,0.00038866,7]
[314996928,1708720251406,-155.913238,0.00038866,14]
[314996929,1708720251415,-151.0,0.00038866,14]
[314996930,1708720251425,-151.0,0.00038866,14]
[314996931,1708720251435,-151.0,0.00038866,14]
[314996932,1708720251445,-185.679318,0.00038866,14]
[314996933,1708720251455,-151.0,0.00038866,3]
[314996934,1708720251465,-151.0,0.00038866,3]
[314996935,1708720251475,-151.0,0.00038866,3]
[314996936,1708720251486,-151.0,0.00038866,3]
[314996937,1708720251496,-151.0,0.00038866,3]
[314996938,1708720251507,-4830.5444876,0.00038867,30]
[314996939,1708720251517,-6197.64971409,0.00038867,30]
[314996940,1708720251529,-446.483578,0.00038868,30]
[314996941,1708720251542,-213.12254516,0.0003887,30]
[314996942,1708720251556,-701.61705084,0.00038872,30]
[314996943,1708720251566,-61168.51766008,0.00038873,30]
[314996944,1708720251577,-213.12254516,0.00038877,30]
[314996945,1708720251588,-150.0,0.00038877,7]
[314996946,1708720251599,-258.46318169,0.00038877,2]
[314996947,1708720251610,-537.44924789,0.00038879,30]
[314996948,1708720251621,-150.0,0.00038881,2]
[314996949,1708720251631,-4830.54448761,0.00038881,30]
[314996950,1708720251642,-446.483578,0.00038882,30]
[314996951,1708720251652,-150.0,0.00038883,2]
[314996952,1708720251662,-242.19778823,0.00038884,7]
[314996953,1708720251671,-151.0,0.00038887,14]
[314996954,1708720251682,-151.0,0.00038887,14]
[314996955,1708720251692,-151.0,0.00038887,14]
[314996956,1708720251702,-151.0,0.00038887,14]
[314996957,1708720251713,-61168.51766008,0.00038887,30]
[314996958,1708720251723,-14764.81460762,0.00038891,30]
[314996959,1708720251733,-15181.71124671,0.00038892,30]
[314996960,1708720251744,-151.0,0.00038892,14]
[314996961,1708720251754,-151.0,0.00038892,14]
[314996962,1708720251765,-151.0,0.00038892,14]
[314996963,1708720251775,-14764.81460762,0.00038893,30]
[314996964,1708720251786,-537.44924789,0.00038893,30]
[314996965,1708720251798,-3343.97962348,0.00038894,30]
[314996966,1708720251808,-14764.81460762,0.00038895,30]
[314996967,1708720251819,-294.31208596,0.00038895,30]
[314996968,1708720251829,-1483.46586773,0.00038895,30]
[314996969,1708720251840,-150.0,0.00038897,2]
[314996970,1708720251851,-150.0,0.00038898,2]
[314996971,1708720251861,-4408.39,0.000389,7]
[314996972,1708720251870,-200.0,0.000389,12]
[314996973,1708720251880,-3330.86,0.000389,7]
[314996974,1708720251891,-160.0,0.000389,7]
[314996975,1708720251903,-440.223687,0.00038904,14]
[314996976,1708720251913,-150.0,0.0003891,2]
[314996977,1708720251924,-150.0,0.00038911,2]
[314996978,1708720251934,-150.0,0.00038913,2]
[314996979,1708720251945,-150.0,0.00038913,2]
[314996980,1708720251955,-164.08227917,0.00038918,2]
[314996981,1708720251965,-150.0,0.00038919,2]
[314996982,1708720251975,-242.19778823,0.00038923,7]
[314996983,1708720251986,-150.0,0.00038923,7]
[314996984,1708720251996,-150.0,0.00038928,2]
[314996985,1708720252007,-150.0,0.00038929,2]
[314996986,1708720252017,-1281.61404157,0.0003893,7]
[314996987,1708720252030,-1281.61404157,0.0003893,7]
[314996988,1708720252040,-1281.61404157,0.0003893,7]
[314996989,1708720252052,-1281.61404157,0.0003893,7]
[314996990,1708720252062,-1281.61404157,0.0003893,7]
[314996991,1708720252072,-1281.61404157,0.0003893,7]
[314996992,1708720252082,-1281.61404157,0.0003893,7]
[314996993,1708720252092,-1281.61404157,0.0003893,7]
[314996994,1708720252104,-1281.61404157,0.0003893,7]
[314996995,1708720252115,-1281.61404157,0.0003893,7]
[314996996,1708720252126,-1281.61404157,0.0003893,7]
[314996997,1708720252136,-1281.61404157,0.0003893,7]
[314996998,1708720252146,-1281.61404157,0.0003893,7]
[314996999,1708720252157,-1281.61404157,0.0003893,7]
[314997000,1708720252167,-1281.61404157,0.0003893,7]
[314997001,1708720252177,-1281.61404157,0.0003893,7]
[314997002,1708720252187,-1281.61404157,0.0003893,7]
[314997003,1708720252198,-1281.61404157,0.0003893,7]
[314997004,1708720252208,-1281.61404157,0.0003893,7]
[314997005,1708720252218,-1281.61,0.0003893,7]
[314997006,1708720252229,-574.96929292,0.0003893,7]
[314997007,1708720252439,-574.96929292,0.0003893,7]
[314997008,1708720252455,-574.96929292,0.0003893,7]
[314997009,1708720252465,-574.96929292,0.0003893,7]
[314997010,1708720252474,-574.96929292,0.0003893,7]
[314997011,1708720252484,-574.96929292,0.0003893,7]
[314997012,1708720252493,-574.96929292,0.0003893,7]
[314997013,1708720252503,-574.96929292,0.0003893,7]
[314997014,1708720252513,-574.96929292,0.0003893,7]
[314997015,1708720252523,-574.96929292,0.0003893,7]
[314997016,1708720252533,-574.96929292,0.0003893,7]
[314997017,1708720252543,-574.96929292,0.0003893,7]
[314997018,1708720252553,-574.96929292,0.0003893,7]
[314997019,1708720252562,-574.96929292,0.0003893,7]
[314997020,1708720252572,-574.96929292,0.0003893,7]
[314997021,1708720252582,-574.96929292,0.0003893,7]
[314997022,1708720252592,-574.96929292,0.0003893,7]
[314997023,1708720252602,-574.96929292,0.0003893,7]
[314997024,1708720252611,-574.96929292,0.0003893,7]
[314997025,1708720252621,-574.96,0.0003893,7]
[314997026,1708720252631,-900.33517252,0.0003893,7]
[314997027,1708720252640,-900.33517252,0.0003893,7]
[314997028,1708720252650,-900.33517252,0.0003893,7]
[314997029,1708720252660,-900.33517252,0.0003893,7]
[314997030,1708720252669,-900.33517252,0.0003893,7]
[314997031,1708720252679,-900.33517252,0.0003893,7]
[314997032,1708720252689,-900.33517252,0.0003893,7]
[314997033,1708720252699,-900.33517252,0.0003893,7]
[314997034,1708720252709,-900.33517252,0.0003893,7]
[314997035,1708720252720,-900.33517252,0.0003893,7]
[314997036,1708720252729,-900.33517252,0.0003893,7]
[314997037,1708720252739,-900.33517252,0.0003893,7]
[314997038,1708720252749,-900.33517252,0.0003893,7]
[314997039,1708720252759,-900.33517252,0.0003893,7]
[314997040,1708720252769,-900.33517252,0.0003893,7]
[314997041,1708720252778,-900.33517252,0.0003893,7]
[314997042,1708720252788,-900.33517252,0.0003893,7]
[314997043,1708720252798,-900.33517252,0.0003893,7]
[314997044,1708720252808,-900.33517252,0.0003893,7]
[314997045,1708720252817,-900.33,0.0003893,7]
[314997046,1708720252827,-361.15238591,0.0003893,7]
[314997047,1708720252836,-361.15238591,0.0003893,7]
[314997048,1708720252846,-361.15238591,0.0003893,7]
[314997049,1708720252855,-361.15238591,0.0003893,7]
[314997050,1708720252864,-361.15238591,0.0003893,7]
[314997051,1708720252874,-361.15238591,0.0003893,7]
[314997052,1708720252884,-361.15238591,0.0003893,7]
[314997053,1708720252894,-361.15238591,0.0003893,7]
[314997054,1708720252903,-361.15238591,0.0003893,7]
[314997055,1708720252913,-361.15238591,0.0003893,7]
[314997056,1708720252923,-361.15238591,0.0003893,7]
[314997057,1708720252932,-361.15238591,0.0003893,7]
[314997058,1708720252941,-361.15238591,0.0003893,7]
[314997059,1708720252951,-361.15238591,0.0003893,7]
[314997060,1708720252960,-361.15238591,0.0003893,7]
[314997061,1708720252969,-361.15238591,0.0003893,7]
[314997062,1708720252978,-361.15238591,0.0003893,7]
[314997063,1708720252988,-361.15238591,0.0003893,7]
[314997064,1708720252997,-361.15238591,0.0003893,7]
[314997065,1708720253007,-361.15,0.0003893,7]
[314997066,1708720253016,-930.08358065,0.0003893,7]
[314997067,1708720253026,-930.08358065,0.0003893,7]
[314997068,1708720253035,-930.08358065,0.0003893,7]
[314997069,1708720253047,-930.08358065,0.0003893,7]
[314997070,1708720253056,-930.08358065,0.0003893,7]
[314997071,1708720253066,-930.08358065,0.0003893,7]
[314997072,1708720253075,-930.08358065,0.0003893,7]
[314997073,1708720253084,-930.08358065,0.0003893,7]
[314997074,1708720253094,-930.08358065,0.0003893,7]
[314997075,1708720253103,-930.08358065,0.0003893,7]
[314997076,1708720253112,-930.08358065,0.0003893,7]
[314997077,1708720253122,-930.08358065,0.0003893,7]
[314997078,1708720253131,-930.08358065,0.0003893,7]
[314997079,1708720253140,-930.08358065,0.0003893,7]
[314997080,1708720253150,-930.08358065,0.0003893,7]
[314997081,1708720253159,-930.08358065,0.0003893,7]
[314997082,1708720253169,-930.08358065,0.0003893,7]
[314997083,1708720253179,-930.08358065,0.0003893,7]
[314997084,1708720253188,-930.08358065,0.0003893,7]
[314997085,1708720253197,-930.08,0.0003893,7]
[314997086,1708720253207,-611.3548274,0.0003893,2]
[314997087,1708720253217,-2642.82868741,0.0003893,2]
[314997088,1708720253227,-332.81242251,0.0003893,2]
[314997089,1708720253237,-267.94345461,0.0003893,2]
[314997090,1708720253246,-173.17724569,0.0003893,2]
[314997091,1708720253255,-150.0,0.00038933,2]
[314997092,1708720253264,-567.15932594,0.00038938,4]
[314997093,1708720253274,-150.0,0.00038938,2]
[314997094,1708720253283,-150.0,0.00038946,7]
[314997095,1708720253294,-301.75168261,0.0003895,2]
[314997096,1708720253303,-632.0,0.00038951,2]
[314997097,1708720253316,-150.0,0.00038958,2]
[314997098,1708720253325,-500.0,0.0003896,2]
[314997099,1708720253334,-500.0,0.0003896,2]
[314997100,1708720253343,-500.0,0.0003896,2]
[314997101,1708720253352,-500.0,0.0003896,2]
[314997102,1708720253361,-500.0,0.0003896,2]
[314997103,1708720253370,-295.4089,0.0003896,2]
[314997104,1708720253379,-1000.0,0.0003896,2]
[314997105,1708720253388,-1000.0,0.0003896,2]
[314997106,1708720253399,-1000.0,0.0003896,2]
[314997107,1708720253409,-1000.0,0.0003896,2]
[314997108,1708720253418,-1000.0,0.0003896,2]
[314997109,1708720253428,-1000.0,0.0003896,2]
[314997110,1708720253438,-1000.0,0.0003896,2]
[314997111,1708720253447,-1000.0,0.0003896,2]
[314997112,1708720253456,-1000.0,0.0003896,2]
[314997113,1708720253466,-1000.0,0.0003896,2]
[314997114,1708720253475,-1000.0,0.0003896,2]
[314997115,1708720253485,-1000.0,0.0003896,2]
[314997116,1708720253494,-1000.0,0.0003896,2]
[314997117,1708720253504,-1000.0,0.0003896,2]
[314997118,1708720253514,-1000.0,0.0003896,2]
[314997119,1708720253523,-1000.0,0.0003896,2]
[314997120,1708720253532,-802.8397,0.0003896,2]
[314997121,1708720253541,-500.0,0.0003896,2]
[314997122,1708720253551,-500.0,0.0003896,2]
[314997123,1708720253560,-500.0,0.0003896,2]
[314997124,1708720253570,-500.0,0.0003896,2]
[314997125,1708720253579,-500.0,0.0003896,2]
[314997126,1708720253588,-500.0,0.0003896,2]
[314997127,1708720253597,-502.5891,0.0003896,2]
[314997128,1708720253607,-151.0,0.0003896,14]
[314997129,1708720253617,-151.0,0.0003896,14]
[314997130,1708720253626,-151.0,0.0003896,14]
[314997131,1708720253635,-165.965878,0.0003896,14]
[314997132,1708720253644,-242.19778823,0.00038962,7]
[314997133,1708720253654,-150.0,0.00038964,7]
[314997134,1708720253664,-211.44571171,0.00038964,2]
[314997135,1708720253674,-700.0,0.0003897,2]
[314997136,1708720253683,-400.0,0.0003897,2]
[314997137,1708720253693,-150.0,0.00038976,2]
[314997138,1708720253703,-150.0,0.00038978,2]
[314997139,1708720253713,-150.0,0.00038981,7]
[314997140,1708720253722,-150.0,0.00038984,2]